bitfinex/quotes_ETHUSD_20250422
["timestamp","ask_amount","ask_price","bid_price","bid_amount"]
[1745294723136,0.14839688,1581.3,1581.1,9.233]
[1745294723430,6.32361851,1581.4,1581.1,9.233]
[1745294723637,0.14839688,1581.3,1581.1,9.233]
[1745294723850,6.32361851,1581.4,1581.1,9.233]
[1745294724457,7.27665561,1581.3,1581.2,5.439]
[1745294726768,0.95269688,1581.3,1581.2,5.439]
[1745294726970,0.14839688,1581.3,1581.2,5.439]
[1745294727172,6.32370165,1581.4,1581.2,5.439]
[1745294727349,0.14839688,1581.3,1581.2,5.439]
[1745294727544,6.32370165,1581.4,1581.2,5.439]
[1745294727764,2.97593774,1581.3,1581.2,5.439]
[1745294728160,2.97593774,1581.3,1581.2,6.2024]
[1745294728478,2.97593774,1581.3,1581.2,9.2024]
[1745294728978,2.97593774,1581.3,1581.2,15.52671065]
[1745294729178,2.97593774,1581.3,1581.2,9.2024]
[1745294731175,2.97593774,1581.3,1581.2,15.52671065]
[1745294731774,2.82754086,1581.3,1581.2,15.52671065]
[1745294731979,0.8043,1581.6,1581.2,15.52671065]
[1745294732159,6.66,1582.0,1581.2,15.52671065]
[1745294732160,9.95304293,1582.0,1581.6,3.0]
[1745294732479,7.79150207,1582.0,1581.7,5.439]
[1745294732640,6.32154185,1581.9,1581.7,5.439]
[1745294732840,7.79150207,1582.0,1581.7,5.439]
[1745294733056,6.32163893,1581.9,1581.7,5.439]
[1745294733383,6.95407563,1581.8,1581.7,5.439]
[1745294733597,6.32191174,1581.8,1581.7,5.439]
[1745294734770,7.12621174,1581.8,1581.7,5.439]
[1745294736502,9.9537526,1581.8,1581.7,5.439]
[1745294737216,2.82754086,1581.8,1581.7,5.439]
[1745294737501,6.3212532,1582.0,1581.8,3.0]
[1745294737803,6.32112214,1582.0,1581.8,3.0]
[1745294738706,9.95274335,1582.1,1581.8,3.0]
[1745294739004,6.32125834,1582.0,1581.8,3.0]
[1745294739496,6.3215121,1581.9,1581.8,3.0]
[1745294740406,6.32191174,1581.8,1581.7,5.439]
[1745294741413,14.6961872,1581.9,1581.7,5.439]
[1745294741624,6.32191174,1581.8,1581.7,5.439]
[1745294744325,11.7616961,1583.9,1582.3,10.07501404]
[1745294744326,0.1,1582.4,1582.3,10.07501404]
[1745294744489,0.1,1582.4,1582.3,40.06868651]
[1745294744821,6.31768494,1582.9,1582.4,9.31936758]
[1745294744999,6.31768494,1582.9,1582.5,6.31910667]
[1745294745319,6.31755915,1582.9,1582.4,3.0]
[1745294745495,10.3717214,1583.0,1582.5,6.31904624]
[1745294745821,17.72631636,1583.0,1582.5,6.31904624]
[1745294746020,6.31754036,1582.9,1582.4,9.31924593]
[1745294746187,6.31754036,1582.9,1582.4,9.31924437]
[1745294746394,6.31754036,1582.9,1582.4,9.86357939]
[1745294747295,6.31754036,1582.9,1582.5,3.64948534]
[1745294748542,6.3179646,1582.8,1582.5,3.64948534]
[1745294748746,12.63539682,1582.9,1582.5,3.64948534]
[1745294748949,12.63539682,1582.9,1582.7,3.0]
[1745294749256,6.31754036,1582.9,1582.8,5.437]
[1745294750453,6.31791761,1582.8,1582.7,3.0]
[1745294750619,6.31791761,1582.8,1582.7,8.436]
[1745294752157,6.31791761,1582.8,1582.7,3.0]
[1745294752455,6.31791761,1582.8,1582.7,5.473]
[1745294752820,6.31838272,1582.7,1582.4,3.4811485]
[1745294753025,6.31838272,1582.7,1582.3,25.24758534]
[1745294753026,6.31951466,1582.4,1582.3,26.316]
[1745294753324,7.14751466,1582.4,1582.3,29.316]
[1745294753629,7.14751466,1582.4,1582.3,23.843]
[1745294753958,9.97505552,1582.4,1582.3,20.843]
[1745294755660,11.60449087,1582.4,1582.3,20.843]
[1745294755859,6.31991404,1582.3,1582.2,5.473]
[1745294756975,6.32031348,1582.2,1582.1,5.473]
[1745294759265,6.32113051,1582.0,1581.7,0.7884]
[1745294759471,6.32113051,1582.0,1581.8,8.473]
[1745294759472,6.32165458,1581.9,1581.8,8.473]
[1745294760374,2.82754086,1582.0,1581.8,12.12248534]
[1745294760858,2.82754086,1582.0,1581.8,12.60463631]
[1745294761061,9.14871878,1582.0,1581.8,12.60463631]
[1745294761449,9.47837889,1582.0,1581.8,12.60463631]
[1745294762091,9.47837889,1582.0,1581.8,8.95515097]
[1745294762259,3.15720097,1582.0,1581.9,3.0]
[1745294762465,3.15720097,1582.0,1581.9,3.7542]
[1745294762984,0.32966011,1582.0,1581.9,10.0757121]
[1745294763570,0.32966011,1582.0,1581.9,10.13891647]
[1745294764575,0.32966011,1582.0,1581.9,10.6257121]
[1745294765076,6.3196661,1582.4,1582.0,6.32083755]
[1745294765283,6.3196661,1582.4,1582.1,0.7542]
[1745294765485,6.3196661,1582.4,1582.2,5.473]
[1745294765688,0.32958627,1582.3,1582.2,8.473]
[1745294766085,6.64950031,1582.3,1582.2,8.473]
[1745294766288,6.64950031,1582.3,1582.2,3.0]
[1745294766488,0.32958627,1582.3,1582.2,8.473]
[1745294768808,0.32958627,1582.3,1582.2,8.95210419]
[1745294769010,6.64950031,1582.3,1582.2,8.95210419]
[1745294769411,6.64950031,1582.3,1582.2,3.47910419]
[1745294769915,6.64950031,1582.3,1582.2,8.95210419]
[1745294771129,0.32958627,1582.3,1582.2,8.95210419]
[1745294772122,0.32958627,1582.3,1582.2,9.75140419]
[1745294772301,0.32958627,1582.3,1582.2,20.27120301]
[1745294772803,0.32958627,1582.3,1582.2,9.75140419]
[1745294773376,0.32958627,1582.3,1582.2,4.27840419]
[1745294773608,0.32958627,1582.3,1582.2,9.75140419]
[1745294776310,12.63857983,1582.5,1582.2,9.75140419]
[1745294776984,12.63856263,1582.5,1582.2,9.75140419]
[1745294777188,6.31914812,1582.5,1582.2,9.75140419]
[1745294778124,12.63855369,1582.5,1582.3,3.0]
[1745294778326,6.31914812,1582.5,1582.3,3.0]
[1745294778488,12.63856389,1582.5,1582.3,3.0]
[1745294778745,6.31914812,1582.5,1582.3,3.0]
[1745294779234,6.64873187,1582.5,1582.3,3.0]
[1745294779891,0.32958375,1582.5,1582.3,3.06319257]
[1745294780483,0.32958375,1582.5,1582.3,3.0]
[1745294780787,6.64870441,1582.5,1582.3,3.0]
[1745294780990,0.32958375,1582.5,1582.3,9.31987652]
[1745294781652,0.32958375,1582.5,1582.3,3.0]
[1745294782187,0.32958375,1582.5,1582.3,9.319739]
[1745294784579,6.64893236,1582.5,1582.4,8.458]
[1745294784978,7.40933236,1582.5,1582.4,8.458]
[1745294785661,0.32958375,1582.5,1582.4,8.458]
[1745294785869,0.32958375,1582.5,1582.4,12.96047133]
[1745294786191,0.32958375,1582.5,1582.4,19.7668]
[1745294786350,9.14521687,1582.9,1582.4,19.7668]
[1745294786351,9.14521687,1582.9,1582.5,9.31890282]
[1745294786556,6.31767601,1582.9,1582.5,9.31890282]
[1745294786751,6.3175909,1582.9,1582.5,6.31890282]
[1745294787191,7.4766134,1583.0,1582.7,0.7898]
[1745294787395,7.4766134,1583.0,1582.8,5.458]
[1745294788005,13.79403017,1583.0,1582.8,5.458]
[1745294788290,6.31751847,1582.9,1582.8,5.458]
[1745294788599,7.07964879,1582.5,1582.2,5.458]
[1745294788797,6.31955787,1582.4,1582.3,5.458]
[1745294788995,7.07964879,1582.5,1582.4,3.0]
[1745294789197,7.07964879,1582.5,1582.3,5.458]
[1745294789354,13.39912368,1582.5,1582.3,5.458]
[1745294790118,7.07964879,1582.5,1582.3,5.458]
[1745294790513,13.39909771,1582.5,1582.3,5.458]
[1745294792013,7.07964879,1582.5,1582.3,5.458]
[1745294792317,6.31891779,1582.6,1582.4,3.0]
[1745294792816,6.31857932,1582.7,1582.4,6.64948534]
[1745294792989,6.31890008,1582.6,1582.4,3.0]
[1745294793627,6.31857932,1582.7,1582.5,5.458]
[1745294793904,6.31815766,1582.8,1582.5,5.458]
[1745294794080,6.318452,1582.7,1582.5,5.458]
[1745294794283,12.63640669,1582.8,1582.5,5.458]
[1745294795007,7.07807754,1582.9,1582.6,3.0]
[1745294795219,6.31804177,1582.8,1582.6,3.0]
[1745294795913,6.3183168,1582.7,1582.6,3.0]
[1745294796410,6.3183168,1582.7,1582.6,3.47826909]
[1745294796612,6.31900708,1582.6,1582.3,3.7898]
[1745294796908,6.31925327,1582.5,1582.4,8.458]
[1745294801895,6.64881544,1582.5,1582.4,8.458]
[1745294804527,0.32956217,1582.5,1582.4,9.2896]
[1745294804728,0.32956217,1582.5,1582.4,8.458]
[1745294805312,0.32956217,1582.5,1582.4,8.52118591]
[1745294805834,6.64867749,1582.5,1582.4,8.52118591]
[1745294806002,6.64867749,1582.5,1582.4,8.458]
[1745294818064,6.31911532,1582.5,1582.4,8.458]
[1745294818267,7.14901993,1582.6,1582.4,8.458]
[1745294818566,6.31911532,1582.5,1582.4,8.458]
[1745294818741,7.14901993,1582.6,1582.4,8.458]
[1745294819070,13.46806135,1582.6,1582.4,8.458]
[1745294819374,6.31911532,1582.5,1582.4,8.458]
[1745294819573,6.31871993,1582.6,1582.4,8.458]
[1745294820463,6.31911532,1582.5,1582.4,8.458]
[1745294821261,6.31871993,1582.6,1582.4,8.458]
[1745294821639,1.1600417,1583.0,1582.5,3.82638913]
[1745294821837,1.1600417,1583.0,1582.5,3.7632]
[1745294821838,6.31827857,1582.8,1582.5,3.7632]
[1745294822054,12.63548777,1582.9,1582.5,10.0820655]
[1745294822359,6.31792887,1582.8,1582.5,10.0820655]
[1745294822536,6.71617956,1583.0,1582.8,0.7632]
[1745294822738,6.71617956,1583.0,1582.9,5.443]
[1745294823041,6.71617956,1583.0,1582.9,5.92022451]
[1745294825259,6.31791761,1582.8,1582.7,3.7632]
[1745294825453,6.31791761,1582.8,1582.7,5.443]
[1745294826832,6.31770625,1582.9,1582.7,5.443]
[1745294827032,7.47739084,1583.0,1582.7,5.443]
[1745294827238,6.71619084,1583.0,1582.8,0.7632]
[1745294827769,0.3988417,1583.0,1582.8,0.7632]
[1745294828970,6.71598856,1583.0,1582.8,0.7632]
[1745294829547,6.71598856,1583.0,1582.8,3.7632]
[1745294830070,0.3988417,1583.0,1582.8,3.7632]
[1745294830581,0.3988417,1583.0,1582.9,0.06316862]
[1745294830746,0.3988417,1583.0,1582.9,9.38068709]
[1745294830934,0.3988417,1583.0,1582.9,9.31751847]
[1745294832273,0.3988417,1583.0,1582.9,9.3806806]
[1745294832747,0.3988417,1583.0,1582.9,9.31751847]
[1745294833443,0.3988417,1583.0,1582.9,3.48013818]
[1745294833444,6.71596109,1583.0,1582.9,3.48013818]
[1745294833645,7.04540303,1583.0,1582.9,8.92213818]
[1745294834336,7.04540303,1583.0,1582.9,8.442]
[1745294834742,0.72828364,1583.0,1582.9,8.442]
[1745294839546,7.04540303,1583.0,1582.9,8.442]
[1745294839747,0.72828364,1583.0,1582.9,8.442]
[1745294841679,7.04540303,1583.0,1582.9,8.442]
[1745294842586,0.72828364,1583.0,1582.9,8.442]
[1745294843683,7.04540303,1583.0,1582.9,8.442]
[1745294846362,0.72828364,1583.0,1582.9,8.442]
[1745294846894,7.04540303,1583.0,1582.9,3.0]
[1745294847098,0.72828364,1583.0,1582.9,8.422]
[1745294847299,0.72828364,1583.0,1582.9,5.422]
[1745294849266,0.72828364,1583.0,1582.9,16.07281847]
[1745294849707,0.72828364,1583.0,1582.9,16.53875517]
[1745294850098,0.41409543,1583.0,1582.9,16.53875517]
[1745294850816,0.1,1583.4,1583.1,6.3164779]
[1745294850990,0.1,1583.4,1583.2,3.06315394]
[1745294851304,0.1,1583.4,1583.3,8.422]
[1745294852714,0.1,1583.4,1583.3,16.07122244]
[1745294852908,6.31410593,1583.8,1583.6,4.43278534]
[1745294853073,6.31476693,1583.6,1583.4,6.64948534]
[1745294853278,6.31476693,1583.6,1583.5,8.421]
[1745294854374,6.31476693,1583.6,1583.5,3.0]
[1745294854579,6.31476693,1583.6,1583.5,8.421]
[1745294855422,7.13636693,1583.6,1583.5,8.421]
[1745294856494,6.31472594,1583.6,1583.5,8.421]
[1745294856698,6.31450465,1583.7,1583.5,8.421]
[1745294856894,6.3140983,1583.8,1583.5,8.421]
[1745294858298,6.31472594,1583.6,1583.5,8.421]
[1745294858892,6.31472594,1583.6,1583.5,3.0]
[1745294859095,6.31472594,1583.6,1583.2,0.7781]
[1745294859292,6.31642349,1583.2,1583.0,0.7781]
[1745294859492,6.31592244,1583.3,1583.1,5.421]
[1745294859795,6.31592244,1583.3,1583.2,3.0]
[1745294860306,6.3165658,1583.2,1582.8,25.57015634]
[1745294860631,6.31674925,1583.1,1582.9,5.421]
[1745294860991,6.31674925,1583.1,1582.9,8.421]
[1745294861627,6.31674925,1583.1,1582.9,3.0]
[1745294861828,6.3166025,1583.2,1583.1,3.0]
[1745294863738,6.31575731,1583.4,1583.2,0.8011]
[1745294863930,6.31632137,1583.2,1583.1,3.0]
[1745294864232,6.31601153,1583.3,1583.1,3.06315932]
[1745294864588,6.31632137,1583.2,1583.1,3.0]
[1745294867817,6.31672035,1583.1,1583.0,8.421]
[1745294875764,7.06722035,1583.1,1583.0,5.421]
[1745294875938,8.53192853,1583.1,1583.0,5.421]
[1745294877224,11.35946939,1583.1,1583.0,5.421]
[1745294879523,6.3183168,1582.7,1582.5,0.7615]
[1745294879728,6.3183168,1582.7,1582.6,5.438]
[1745294882282,6.3183168,1582.7,1582.5,0.06318202]
[1745294882447,6.31929997,1582.5,1582.3,20.825]
[1745294882652,6.31888121,1582.6,1582.5,3.0]
[1745294885865,6.3181284,1582.8,1582.5,3.0]
[1745294886472,6.31837367,1582.7,1582.5,3.0]
[1745294886676,6.64790057,1582.7,1582.5,3.0]
[1745294887886,6.31871603,1582.6,1582.5,3.0]
[1745294893379,6.31871603,1582.6,1582.5,8.439]
[1745294895357,6.32031348,1582.2,1582.1,5.439]
[1745294895759,6.32074777,1582.1,1581.9,0.7665]
[1745294895963,6.32074777,1582.1,1582.0,5.439]
[1745294899187,7.09575945,1582.0,1581.8,5.44]
[1745294899387,6.32135945,1582.0,1581.8,5.44]
[1745294899570,12.64280877,1582.0,1581.8,5.44]
[1745294900001,6.32135945,1582.0,1581.8,5.44]
[1745294900303,12.6428109,1582.0,1581.8,5.44]
[1745294901404,6.3215121,1581.9,1581.8,5.44]
[1745294903111,7.66323925,1581.9,1581.8,5.44]
[1745294903431,7.09671143,1581.7,1581.6,20.83]
[1745294903569,6.32271117,1581.6,1581.5,5.441]
[1745294905305,7.13951117,1581.6,1581.5,5.441]
[1745294905601,8.76844752,1581.6,1581.5,5.441]
[1745294907307,7.13951117,1581.6,1581.5,5.441]
[1745294908227,9.14985229,1581.7,1581.5,8.441]
[1745294908406,2.82754086,1581.7,1581.5,8.441]
[1745294909211,9.14990912,1581.7,1581.5,8.441]
[1745294909985,2.82754086,1581.7,1581.6,3.0]
[1745294910190,6.32169475,1581.9,1581.6,10.11811117]
[1745294910382,7.13809051,1582.0,1581.7,0.06321572]
[1745294910578,6.32090888,1582.1,1581.7,6.32218904]
[1745294910811,6.32054461,1582.2,1581.8,3.85860987]
[1745294911121,6.32014874,1582.3,1581.9,15.40770294]
[1745294911317,6.32014874,1582.3,1582.1,3.0]
[1745294911679,0.32961952,1582.2,1582.1,3.0]
[1745294912013,6.649933,1582.2,1582.1,3.0]
[1745294912215,6.31973723,1582.4,1582.0,3.85860102]
[1745294912423,6.31933838,1582.5,1582.2,3.0]
[1745294912575,6.31933838,1582.5,1582.4,3.0]
[1745294913335,6.31978692,1582.4,1582.3,5.436]
[1745294914123,6.31933361,1582.5,1582.4,3.0]
[1745294916012,6.31933361,1582.5,1582.3,5.436]
[1745294916013,11.22736339,1582.5,1582.3,5.436]
[1745294916233,6.31951466,1582.4,1582.3,5.436]
[1745294916403,6.32071297,1582.1,1581.8,0.7954]
[1745294916608,6.32071297,1582.1,1581.9,5.49920762]
[1745294916822,6.32052627,1582.2,1582.0,3.0]
[1745294917418,6.32071297,1582.1,1582.0,3.0]
[1745294917650,6.32052627,1582.2,1582.0,3.0]
[1745294918894,6.32111251,1582.0,1581.8,0.7954]
[1745294919107,6.32111251,1582.0,1581.9,5.436]
[1745294919636,6.3216682,1581.9,1581.8,5.436]
[1745294920203,6.3216682,1581.9,1581.8,8.436]
[1745294921310,9.14847714,1582.1,1581.9,3.0]
[1745294921519,6.32111251,1582.0,1581.9,3.0]
[1745294923855,15.46954626,1582.1,1581.9,3.0]
[1745294924138,6.32093628,1582.1,1581.9,3.0]
[1745294924435,6.32111251,1582.0,1581.9,3.0]
[1745294924737,6.32093628,1582.1,1581.9,3.0]
[1745294925145,6.32053463,1582.2,1581.9,3.7951]
[1745294925350,6.32053463,1582.2,1581.9,3.85830972]
[1745294925726,6.32074814,1582.1,1581.9,3.85830972]
[1745294925922,12.64174324,1582.1,1581.9,3.7951]
[1745294926247,6.32074814,1582.1,1581.9,3.7951]
[1745294926945,6.32074814,1582.1,1581.9,4.28032141]
[1745294927153,6.31821914,1582.1,1581.9,4.28032141]
[1745294927449,6.32045383,1582.2,1581.9,4.34352815]
[1745294927618,12.64105421,1582.2,1581.9,4.34352815]
[1745294927815,3.94539637,1582.4,1581.9,10.66494982]
[1745294928018,6.64929717,1582.4,1582.0,9.97025936]
[1745294928228,6.64929717,1582.4,1582.2,3.0]
[1745294928417,6.64929717,1582.4,1582.2,8.436]
[1745294928923,0.32965551,1582.4,1582.2,9.2311]
[1745294929115,6.64921378,1582.4,1582.2,9.2311]
[1745294929314,0.32965551,1582.4,1582.2,9.2311]
[1745294929559,6.64918925,1582.4,1582.2,9.2311]
[1745294929856,0.32965551,1582.4,1582.2,9.2311]
[1745294930030,0.32965551,1582.4,1582.2,15.61428549]
[1745294930347,0.32965551,1582.4,1582.3,6.31991404]
[1745294930527,0.32965551,1582.4,1582.2,19.20057662]
[1745294930722,0.32965551,1582.4,1582.2,25.52064396]
[1745294930957,0.32965551,1582.4,1582.2,19.20057662]
[1745294932255,0.32965551,1582.4,1582.3,6.31991404]
[1745294932453,0.32965551,1582.4,1582.2,19.20057662]
[1745294933468,0.32965551,1582.4,1582.2,12.88058534]
[1745294933767,0.32965551,1582.4,1582.3,6.31991404]
[1745294934263,0.32965551,1582.4,1582.2,19.20076255]
[1745294934415,0.32965551,1582.4,1582.2,25.52082689]
[1745294934755,0.32965551,1582.4,1582.2,19.20063729]
[1745294935054,0.32965551,1582.4,1582.3,6.38310153]
[1745294935354,0.32965551,1582.4,1582.2,25.52068616]
[1745294935755,0.32965551,1582.4,1582.3,6.31991404]
[1745294935950,6.31888024,1582.6,1582.4,3.0]
[1745294936456,6.31848563,1582.7,1582.4,3.0631872]
[1745294936643,6.31848563,1582.7,1582.4,0.0631872]
[1745294936816,6.31883774,1582.6,1582.3,9.31990743]
[1745294937862,3.61574086,1582.8,1582.6,3.0]
[1745294938020,7.07533837,1582.9,1582.6,8.469]
[1745294938225,6.31805255,1582.8,1582.6,8.469]
[1745294938555,6.3183168,1582.7,1582.6,8.469]
[1745294938726,6.3183168,1582.7,1582.6,5.469]
[1745294938927,7.58195373,1582.7,1582.6,5.469]
[1745294939754,6.31893034,1582.6,1582.3,3.7571]
[1745294939927,7.07653034,1582.6,1582.5,8.469]
[1745294941455,6.31893034,1582.6,1582.5,8.469]
[1745294944444,7.07610298,1582.7,1582.5,8.469]
[1745294944862,6.31871603,1582.6,1582.5,8.469]
[1745294946269,7.07610298,1582.7,1582.5,8.469]
[1745294946682,6.31871603,1582.6,1582.5,8.469]
[1745294947471,13.39477093,1582.7,1582.5,8.469]
[1745294947626,7.07610298,1582.7,1582.5,8.469]
[1745294948130,13.39474156,1582.7,1582.5,8.469]
[1745294948335,6.31850298,1582.7,1582.5,5.53218713]
[1745294948548,6.31850298,1582.7,1582.5,5.469]
[1745294950042,6.31731279,1583.0,1582.6,0.83448267]
[1745294950363,12.63477579,1583.0,1582.6,7.08983971]
[1745294950748,6.31754342,1582.9,1582.6,0.7713]
[1745294951064,6.31731279,1583.0,1582.6,7.08998344]
[1745294951443,9.14402723,1583.2,1582.8,7.0889696]
[1745294951754,9.14402723,1583.2,1582.9,8.468]
[1745294951755,6.31646105,1583.2,1582.9,8.468]
[1745294952070,7.09586094,1583.3,1582.9,14.78549459]
[1745294952377,9.92256389,1583.5,1583.1,3.0]
[1745294952540,3.60724086,1583.5,1583.1,3.0]
[1745294952869,6.31598975,1583.3,1583.1,3.0]
[1745294953075,6.31569506,1583.4,1583.1,3.0]
[1745294953435,2.82754086,1583.5,1583.1,3.0]
[1745294953638,0.7797,1583.7,1583.4,3.0]
[1745294953939,6.314347,1583.7,1583.5,5.468]
[1745294954355,6.31472594,1583.6,1583.5,5.468]
[1745294954736,6.314347,1583.7,1583.5,5.468]
[1745294954737,12.62898856,1583.7,1583.5,5.468]
[1745294954936,6.31472594,1583.6,1583.5,5.468]
[1745294955163,9.14630645,1583.9,1583.5,9.2393]
[1745294955366,6.31409637,1583.8,1583.6,3.0]
[1745294955799,6.31409637,1583.8,1583.6,3.46830652]
[1745294956002,6.31870925,1583.9,1583.6,3.53144562]
[1745294956178,6.31870925,1583.9,1583.6,3.46830652]
[1745294956379,0.005,1583.9,1583.8,3.0]
[1745294956593,0.005,1583.9,1583.8,3.7713]
[1745294957092,0.005,1583.9,1583.8,10.63522852]
[1745294957399,0.005,1583.9,1583.8,14.28471386]
[1745294958203,0.005,1584.1,1584.0,3.0]
[1745294958408,0.005,1584.1,1584.0,8.52912131]
[1745294958935,0.005,1584.1,1584.0,9.49324691]
[1745294959201,0.005,1584.1,1584.0,15.80637822]
[1745294960009,0.005,1584.1,1584.0,20.22716356]
[1745294960183,0.1,1584.4,1584.3,9.86193587]
[1745294960384,0.1,1584.4,1584.3,7.19948534]
[1745294960605,0.1,1584.4,1584.3,13.51142121]
[1745294961294,0.1,1584.4,1584.3,3.0]
[1745294961465,6.41153749,1584.4,1584.3,3.0]
[1745294961672,0.1,1584.4,1584.3,8.465]
[1745294962788,6.41153749,1584.4,1584.3,8.465]
[1745294963712,0.1,1584.4,1584.3,9.2555]
[1745294963927,0.1,1584.4,1584.3,9.8686111]
[1745294964121,0.1,1584.4,1584.3,9.8055]
[1745294964621,0.1,1584.4,1584.3,16.18054185]
[1745294964798,0.1,1584.4,1584.3,16.11743587]
[1745294965604,0.1,1584.4,1584.3,19.76692121]
[1745294968730,0.1,1584.4,1584.1,0.7905]
[1745294969021,7.87837764,1584.4,1584.3,5.469]
[1745294971529,7.23673749,1584.4,1584.3,5.469]
[1745294972024,0.1,1584.4,1584.3,8.469]
[1745294972223,0.1,1584.4,1584.3,9.2595]
[1745294973303,0.1,1584.4,1584.3,8.469]
[1745294973515,6.41153749,1584.4,1584.3,8.469]
[1745294974427,6.31247018,1584.2,1584.0,0.46906913]
[1745294974729,7.13739868,1584.3,1584.1,5.469]
[1745294975525,13.44969097,1584.3,1584.1,5.469]
[1745294975711,6.3123343,1584.2,1584.1,5.469]
[1745294976115,6.31273957,1584.1,1583.9,20.81]
[1745294976298,6.31273957,1584.1,1584.0,3.0]
[1745294976491,6.3123343,1584.2,1584.0,8.469]
[1745294976696,6.31273278,1584.1,1584.0,8.469]
[1745294976898,6.3123343,1584.2,1584.0,8.469]
[1745294977098,6.31273278,1584.1,1584.0,8.469]
[1745294978826,7.13748286,1584.3,1584.0,8.469]
[1745294979211,13.44974138,1584.3,1584.0,8.469]
[1745294979416,6.31233561,1584.2,1584.0,8.469]
[1745294979596,7.13745852,1584.3,1584.0,8.469]
[1745294979802,13.44978921,1584.3,1584.0,8.94873747]
[1745294980002,13.44970875,1584.3,1584.0,8.94873747]
[1745294980213,6.31273278,1584.1,1584.0,8.469]
[1745294981239,6.31313131,1584.0,1583.9,23.81]
[1745294981471,7.12363131,1584.0,1583.9,29.279]
[1745294981641,7.12363131,1584.0,1583.9,23.81]
[1745294981943,7.12323278,1584.1,1583.9,29.279]
[1745294982844,6.31258189,1584.2,1583.9,29.279]
[1745294983052,9.95020069,1584.3,1584.0,3.0]
[1745294983254,16.26248287,1584.3,1584.0,3.0]
[1745294983423,9.95020069,1584.3,1584.0,3.0]
[1745294984842,6.31245201,1584.2,1584.0,3.0]
[1745294985043,6.31273278,1584.1,1584.0,3.0]
[1745294985756,6.31245201,1584.2,1584.0,3.0]
[1745294986058,6.31273278,1584.1,1584.0,8.469]
[1745294986256,6.31273278,1584.1,1584.0,3.0]
[1745294986551,12.62506967,1584.2,1584.0,8.9304788]
[1745294986755,6.31245201,1584.2,1584.0,8.9304788]
[1745294987652,9.95021466,1584.3,1584.0,8.9304788]
[1745294987840,9.95021466,1584.3,1584.0,9.7357788]
[1745294988024,9.95021466,1584.3,1584.0,9.79890197]
[1745294988523,9.95021466,1584.3,1584.0,9.7357788]
[1745294988726,6.31248741,1584.2,1584.0,9.7357788]
[1745294989456,6.31273278,1584.1,1584.0,8.9304788]
[1745294989624,6.31273278,1584.1,1584.0,8.469]
[1745294990368,9.9502224,1584.3,1584.0,8.53213038]
[1745294990524,16.26244054,1584.3,1584.0,8.469]
[1745294990723,9.9502224,1584.3,1584.0,8.469]
[1745294991027,9.9502224,1584.3,1584.0,8.95228057]
[1745294991353,0.32921981,1584.2,1584.0,9.01540221]
[1745294992250,0.32921981,1584.2,1584.1,0.8053]
[1745294996339,0.32921981,1584.2,1584.1,0.8684196]
[1745294996746,0.32921981,1584.2,1584.1,10.18115238]
[1745294997135,0.32921981,1584.2,1584.1,10.11803278]
[1745294997335,0.32921981,1584.2,1584.1,10.18114842]
[1745294999034,0.32921981,1584.2,1584.1,10.73114842]
[1745294999449,0.32921981,1584.2,1584.1,10.66803278]
[1745294999736,0.32921981,1584.2,1584.1,8.00478534]
[1745295000761,0.32921981,1584.2,1584.1,14.31751812]
[1745295000942,0.1,1584.4,1584.3,6.86193587]
[1745295001266,0.005,1584.5,1584.3,6.86193587]
[1745295001267,0.005,1584.5,1584.4,10.64793749]
[1745295001470,0.005,1584.5,1584.4,16.11193749]
[1745295005567,0.005,1584.5,1584.4,8.464]
[1745295005766,0.005,1584.5,1584.4,8.52710732]
[1745295006170,0.005,1584.5,1584.4,8.94335531]
[1745295006469,0.005,1584.5,1584.4,9.00646264]
[1745295008481,0.005,1584.5,1584.4,15.31800013]
[1745295008777,0.005,1584.5,1584.4,8.94335531]
[1745295008942,0.005,1584.5,1584.4,15.86800007]
[1745295009281,0.005,1584.5,1584.4,15.8048928]
[1745295010375,0.005,1584.5,1584.4,8.94335531]
[1745295010677,0.005,1584.5,1584.4,9.00646124]
[1745295010879,0.005,1584.5,1584.4,9.00646114]
[1745295011067,0.005,1584.5,1584.4,15.31799863]
[1745295011364,0.005,1584.5,1584.4,15.2548928]
[1745295011774,0.005,1584.5,1584.4,8.94335531]
[1745295012343,0.005,1584.5,1584.4,9.00646115]
[1745295012573,0.005,1584.5,1584.4,15.8048928]
[1745295013677,0.005,1584.5,1584.4,12.8048928]
[1745295013855,0.005,1584.5,1584.4,15.8048928]
[1745295016279,0.005,1584.5,1584.4,9.49335531]
[1745295016474,0.005,1584.5,1584.4,15.8048928]
[1745295016780,0.005,1584.5,1584.4,9.49335531]
[1745295016953,0.005,1584.5,1584.4,15.8048928]
[1745295017152,0.33415206,1584.5,1584.4,15.8048928]
[1745295017485,6.31165581,1584.4,1584.3,5.463]
[1745295017680,7.41655293,1584.5,1584.3,5.463]
[1745295017887,8.82907305,1584.5,1584.3,8.463]
[1745295018182,0.33415206,1584.5,1584.3,8.463]
[1745295018384,0.33415206,1584.5,1584.3,8.52611109]
[1745295018578,0.005,1584.5,1584.3,8.52611109]
[1745295018785,6.31639912,1584.5,1584.3,8.463]
[1745295018955,0.7711,1584.4,1584.3,8.463]
[1745295019458,0.005,1584.5,1584.3,8.463]
[1745295020271,6.31614998,1584.5,1584.3,8.463]
[1745295020660,0.005,1584.5,1584.3,8.463]
[1745295022083,0.005,1584.5,1584.4,3.0]
[1745295029161,0.005,1584.5,1584.4,3.06310766]
[1745295029387,0.005,1584.5,1584.4,3.0]
[1745295030078,0.005,1584.5,1584.4,3.06310767]
[1745295033395,0.005,1584.5,1584.4,3.0]
[1745295034289,0.33416856,1584.5,1584.4,3.0]
[1745295036905,7.46300772,1584.5,1584.4,3.0]
[1745295037205,2.56914705,1584.5,1584.4,3.0]
[1745295037402,1.15186856,1584.5,1584.4,3.0]
[1745295038906,7.46300772,1584.5,1584.4,3.0]
[1745295039770,7.10007463,1584.4,1584.3,5.445]